Workbook

Sheet Расчет
A1: РАСЧЕТ
B3: на
B6: Наименование организации
B8: Район
B10: Населенный пункт
A12: № п/п | B12: Наименование показателей | C12: Ед.изм. | D12: Год | F12: Отклонение (п.5-п.4)
A14: 1 | B14: 2 | C14: 3 | D14: 4 | E14: 5 | F14: 6
A15: Условия
A16: I | B16: Объем
A17: 1 | B17: А | C17: тыс.куб.м. | D17: =D23+D21+D19 -> 160 | E17: =E23+E21+E19 -> 50 | F17: =E17-D17 -> -110
A18: 2 | B18: Б | C18: тыс.куб.м. | D18: 10 | F18: =E18-D18 -> -10 | I18: Нужно скрыть строки в каждом из разделов (I, II), в которых по столбцам D и E нет данных. При этом основные пункты (закрашенные зеленой заливкой: А,Б,В,Г,Д и тд.), даже если в них сумма показателей равна нулю, скрываться не должны.
A19: 3 | B19: В | C19: тыс.куб.м. | E19: 20 | F19: 20
A20: 4 | B20: Г | C20: тыс.куб.м. | D20: =D23+D21 -> 160 | E20: =E23+E21 -> 30 | F20: -130
A21: 5 | B21: Д | C21: тыс.куб.м. | D21: 50 | F21: -50
A22: 5.1 | B22: Д1 | C22: % | D22: =IF(D20=0,0,D21/D20*100) -> 31.25 | E22: =IF(E20=0,0,E21/E20*100) -> 0 | F22: -31.25
A23: 6 | B23: Е | C23: тыс.куб.м. | D23: =D24+D25+D26 -> 110 | E23: =E24+E25+E26 -> 30 | F23: -80
A24: 6.1 | B24: Е1 | C24: тыс.куб.м. | E24: 30 | F24: 30
A25: 6.2 | B25: Е2 | C25: тыс.куб.м. | F25: 0 | G25: скрыть
A26: 6.3 | B26: Е3 | C26: тыс.куб.м. | D26: =D27+D28+D31 -> 110 | E26: =E27+E28+E31 -> 0 | F26: -110
A27: 6.3.1 | B27: Е31 | C27: тыс.куб.м. | D27: 50 | F27: -50
A28: 6.3.2 | B28: Е32 | C28: тыс.куб.м. | D28: =D29+D30 -> 60 | E28: =E29+E30 -> 0 | F28: -60
B29: Е321 | C29: тыс.куб.м. | F29: 0 | G29: скрыть
B30: Е322 | C30: тыс.куб.м. | D30: 60 | F30: -60
A31: 6.3.3 | B31: Е33 | C31: тыс.куб.м. | F31: 0 | G31: скрыть
A32: 7 | B32: Ё | C32: тыс.куб.м. | D32: =D29 -> 0 | E32: =E29 -> 0 | F32: 0
A33: 8 | B33: Ж | C33: тыс.куб.м. | D33: =D30 -> 60 | E33: =E30 -> 0 | F33: -60
A34: II | B34: Расходы
A35: 1 | B35: А | C35: тыс.руб. | D35: =D36+D37+D57+D58+D64+D65+D66 -> 600 | E35: =E36+E37+E57+E58+E64+E65+E66 -> 800 | F35: =E35-D35 -> 200
A36: 1.1 | B36: А1 | C36: тыс.руб. | D36: 100 | F36: -100
A37: 1.2 | B37: А2 | C37: тыс.руб. | D37: =D38+D54+D55+D56 -> 500 | E37: =E38+E54+E55+E56 -> 800 | F37: 300
A38: 1.2.1 | B38: А21 | C38: тыс.руб. | D38: =D42+D45+D48+D51 -> 0 | E38: =E42+E45+E48+E51 -> 200 | F38: 200
B39: А211 | C39: тыс.кВт*ч | D39: =D43+D46+D49+D52 -> 0 | E39: =E43+E46+E49+E52 -> 200 | F39: 200
B40: А212 | C40: руб. | D40: =IF(D39=0,0,D38/D39) -> 0 | E40: =IF(E39=0,0,E38/E39) -> 1 | F40: 1
B41: А213 | C41: кВт*чм3 | D41: =IF(D17=0,0,D39/D17*1000) -> 0 | E41: =IF(E17=0,0,E39/E17*1000) -> 4000 | F41: 4000
B42: А2131 | C42: тыс.руб. | D42: =D43*D44 -> 0 | E42: =E43*E44 -> 200 | F42: 200
B43: А21311 | C43: тыс.кВт*ч | E43: 200 | F43: 200
B44: А21312 | C44: руб. | E44: 1 | F44: 1
B45: А2132 | C45: тыс.руб. | D45: =D46*D47 -> 0 | E45: =E46*E47 -> 0 | F45: 0
B46: А21321 | C46: тыс.кВт*ч | F46: 0 | G46: скрыть
B47: А213122 | C47: руб. | F47: 0 | G47: скрыть
B48: А2133 | C48: тыс.руб. | D48: =D49*D50 -> 0 | E48: =E49*E50 -> 0 | F48: 0
B49: А21331 | C49: тыс.кВт*ч | F49: 0 | G49: скрыть
B50: А21332 | C50: руб. | F50: 0 | G50: скрыть
B51: А2134 | C51: тыс.руб. | D51: =D52*D53 -> 0 | E51: =E52*E53 -> 0 | F51: 0
B52: А21341 | C52: тыс.кВт*ч | F52: 0 | G52: скрыть
B53: А21342 | C53: руб. | F53: 0 | G53: скрыть
A54: 1.2.2 | B54: А22 | C54: тыс.руб. | D54: 500 | F54: -500
A55: 1.2.3 | B55: А23 | C55: тыс.руб. | E55: 600 | F55: 600
A56: 1.2.4 | B56: А24 | C56: тыс.руб. | F56: 0 | G56: скрыть
A57: 1.3 | B57: А3 | C57: тыс.руб. | F57: 0 | G57: скрыть
A58: 1.4 | B58: А4 | C58: тыс.руб. | D58: =D59+D63 -> 0 | E58: =E59+E63 -> 0 | F58: 0
A59: 1.4.1 | B59: А41 | C59: тыс.руб. | F59: 0 | G59: скрыть
B60: А411 | C60: руб. | F60: =E60-D60 -> 0 | G60: скрыть
B61: А412 | C61: чел. | F61: =E61-D61 -> 0 | G61: скрыть
B62: А413 | C62: руб./мес. | D62: =IF(D61=0,0,D59/D61/12*1000) -> 0 | E62: =IF(E61=0,0,E59/E61/12*1000) -> 0 | F62: =E62-D62 -> 0
A63: 1.4.2 | B63: А42 | C63: тыс.руб. | F63: 0 | G63: скрыть
A64: 1.5 | B64: А5 | C64: тыс.руб. | F64: 0 | G64: скрыть
A65: 1.6 | B65: А6 | C65: тыс.руб. | F65: 0 | G65: скрыть
A66: 1.7 | B66: А7 | C66: тыс.руб. | F66: 0 | G66: скрыть
A67: 2 | B67: Б | C67: тыс.руб. | D67: =D68+D69+D70+D71 -> 500 | E67: =E68+E69+E70+E71 -> 600 | F67: 100
A68: 2.1 | B68: Б1 | C68: тыс.руб. | D68: 500 | F68: -500
A69: 2.2 | B69: Б2 | C69: тыс.руб. | F69: 0 | G69: скрыть
A70: 2.3 | B70: Б3 | C70: тыс.руб. | E70: 600 | F70: 600
A71: 2.4 | B71: Б4 | C71: тыс.руб. | F71: 0 | G71: скрыть
A72: 3 | B72: В | C72: тыс.руб. | D72: =D73+D74+D77+D78+D79+D80+D81+D82 -> 0 | E72: =E73+E74+E77+E78+E79+E80+E81+E82 -> 0 | F72: 0
A73: 3.1 | B73: В1 | C73: тыс.руб. | F73: 0 | G73: скрыть
A74: 3.2 | B74: В2 | C74: тыс.руб. | F74: 0 | G74: скрыть
A75: 3.2.1 | B75: В21 | C75: чел. | E75: 70 | F75: =E75-D75 -> 70
A76: 3.2.2 | B76: В22 | C76: руб./мес. | D76: =IF(D75=0,0,D74/D75/12*1000) -> 0 | E76: =IF(E75=0,0,E74/E75/12*1000) -> 0 | F76: =E76-D76 -> 0
A77: 3.3 | B77: В3 | C77: тыс.руб. | F77: 0 | G77: скрыть
A78: 3.4 | B78: В4 | C78: тыс.руб. | F78: 0 | G78: скрыть
A79: 3.5 | B79: В5 | C79: тыс.руб. | F79: 0 | G79: скрыть
A80: 3.6 | B80: В6 | C80: тыс.руб. | F80: 0 | G80: скрыть
A81: 3.7 | B81: В7 | C81: тыс.руб. | F81: 0 | G81: скрыть
A82: 3.8 | B82: В8 | C82: тыс.руб. | F82: 0 | G82: скрыть
A83: 4 | B83: Г | C83: тыс.руб. | D83: 600 | F83: -600
A84: 5 | B84: Д | C84: тыс.руб. | E84: 700 | F84: 700
A85: 6 | B85: Е | C85: тыс.руб. | D85: =D86+D87+D88+D89+D90+D91 -> 800 | E85: =E86+E87+E88+E89+E90+E91 -> 200 | F85: -600
A86: 6.1 | B86: Е1 | C86: тыс.руб. | D86: 800 | F86: -800
A87: 6.2 | B87: Е2 | C87: тыс.руб. | F87: 0 | G87: скрыть
A88: 6.3 | B88: Е3 | C88: тыс.руб. | E88: 200 | F88: 200
A89: 6.4 | B89: Е4 | C89: тыс.руб. | F89: 0 | G89: скрыть
A90: 6.5 | B90: Е5 | C90: тыс.руб. | F90: 0 | G90: скрыть
A91: 6.6 | B91: Е6 | C91: тыс.руб. | F91: 0 | G91: скрыть
A92: 7 | B92: Ё | C92: тыс.руб. | D92: =D93+D94+D95+D96+D97 -> 900 | E92: =E93+E94+E95+E96+E97 -> 0 | F92: -900
A93: 7.1 | B93: Ё1 | C93: тыс.руб. | D93: 900 | F93: -900
A94: 7.2 | B94: Ё2 | C94: тыс.руб. | F94: 0 | G94: скрыть
A95: 7.3 | B95: Ё3 | C95: тыс.руб. | F95: 0 | G95: скрыть
A96: 7.4 | B96: Ё4 | C96: тыс.руб. | F96: 0 | G96: скрыть
A97: 7.5 | B97: Ё5 | C97: тыс.руб. | F97: 0 | G97: скрыть
A98: 8 | B98: Ж | C98: тыс.руб. | D98: 50 | F98: -50
A99: 9 | B99: З | C99: тыс.руб. | E99: 80 | F99: 80
A100: 10 | B100: И | C100: тыс.руб. | D100: =(D35+D67+D72+D83+D84+D85+D92+D98)-D99 -> 3450 | E100: =(E35+E67+E72+E83+E84+E85+E92+E98)-E99 -> 2220 | F100: -1230
A101: III | B101: К | C101: руб. | D101: =IF(D23=0,0,D100/D23) -> 31.36363636 | E101: =IF(E23=0,0,E100/E23) -> 74 | F101: 42.63636364
